[Event "*** Titled Tuesday Blitz"]
[Site "Chess.com"]
[Date "2021.03.30"]
[Round "3"]
[White "StockholmMissile"]
[Black "sbouchet"]
[Result "0-1"]
[WhiteElo "2555"]
[BlackElo "2403"]
[TimeControl "180+1"]
[EndTime "10:28:17 PDT"]
[Termination "sbouchet won by resignation"]

1. Nf3 {[%clk 0:03:00.9]} 1... c5 {[%clk 0:02:55]} 2. c4 {[%clk 0:02:55.3]} 2...
Nc6 {[%clk 0:02:54.6]} 3. Nc3 {[%clk 0:02:54.7]} 3... g6 {[%clk 0:02:54.7]} 4.
g3 {[%clk 0:02:52]} 4... Bg7 {[%clk 0:02:54.8]} 5. Bg2 {[%clk 0:02:52.4]} 5...
e5 {[%clk 0:02:55]} 6. O-O {[%clk 0:02:51.1]} 6... Nge7 {[%clk 0:02:55.5]} 7. a3
{[%clk 0:02:50.9]} 7... a5 {[%clk 0:02:53.7]} 8. d3 {[%clk 0:02:47.8]} 8... O-O
{[%clk 0:02:52.7]} 9. Ne1 {[%clk 0:02:48]} 9... d6 {[%clk 0:02:46.7]} 10. Nc2
{[%clk 0:02:47.7]} 10... f5 {[%clk 0:02:44.5]} 11. Rb1 {[%clk 0:02:47.2]} 11...
Be6 {[%clk 0:02:38]} 12. b4 {[%clk 0:02:46.5]} 12... axb4 {[%clk 0:02:19.8]} 13.
axb4 {[%clk 0:02:47.4]} 13... Qd7 {[%clk 0:02:01.7]} 14. bxc5 {[%clk 0:02:38.7]}
14... dxc5 {[%clk 0:02:01.2]} 15. Be3 {[%clk 0:02:38.8]} 15... e4 {[%clk
0:01:35.1]} 16. Nb5 {[%clk 0:02:34.3]} 16... Nd4 {[%clk 0:01:15.2]} 17. Nbxd4
{[%clk 0:02:24.8]} 17... cxd4 {[%clk 0:01:13.9]} 18. Bf4 {[%clk 0:02:15.6]}
18... Nc6 {[%clk 0:01:13.8]} 19. dxe4 {[%clk 0:02:11.2]} 19... Bxc4 {[%clk
0:01:13.7]} 20. exf5 {[%clk 0:02:08]} 20... Qxf5 {[%clk 0:01:02.3]} 21. Rxb7
{[%clk 0:01:59.6]} 21... Bd5 {[%clk 0:00:59.2]} 22. Bxd5+ {[%clk 0:01:55.6]}
22... Qxd5 {[%clk 0:00:58.7]} 23. Nb4 {[%clk 0:01:53.7]} 23... Nxb4 {[%clk
0:00:56.4]} 24. Rxb4 {[%clk 0:01:54.6]} 24... Rad8 {[%clk 0:00:48.4]} 25. Qb3
{[%clk 0:01:53.6]} 25... Rfe8 {[%clk 0:00:42]} 26. Re1 {[%clk 0:01:41.9]} 26...
Qxb3 {[%clk 0:00:32.5]} 27. Rxb3 {[%clk 0:01:41.7]} 27... d3 {[%clk 0:00:26.4]}
28. e3 {[%clk 0:01:38.8]} 28... d2 {[%clk 0:00:26.6]} 29. Rd1 {[%clk 0:01:37.9]}
29... Rd5 {[%clk 0:00:27.1]} 30. f3 {[%clk 0:01:27.4]} 30... g5 {[%clk
0:00:26.4]} 31. e4 {[%clk 0:01:27.6]} 31... gxf4 {[%clk 0:00:18]} 32. gxf4
{[%clk 0:01:15.3]} 32... Rd7 {[%clk 0:00:17.3]} 33. Kf2 {[%clk 0:01:13.7]} 33...
Bh6 {[%clk 0:00:16.7]} 34. f5 {[%clk 0:01:11.6]} 34... Bf4 {[%clk 0:00:15.8]}
35. Ke2 {[%clk 0:01:07.4]} 35... Rc8 {[%clk 0:00:15.4]} 36. h3 {[%clk
0:00:36.2]} 36... Rc1 {[%clk 0:00:14.8]} 37. Rb6 {[%clk 0:00:26.7]} 37... Rxd1
{[%clk 0:00:08.2]} 38. Kxd1 {[%clk 0:00:27.6]} 38... Rc7 {[%clk 0:00:08.6]} 39.
Rb8+ {[%clk 0:00:28.2]} 39... Kf7 {[%clk 0:00:08.1]} 40. Rd8 {[%clk 0:00:29.1]}
40... Rc1+ {[%clk 0:00:07.2]} 41. Ke2 {[%clk 0:00:29.4]} 41... Re1+ {[%clk
0:00:07.8]} 42. Kf2 {[%clk 0:00:29.3]} 42... d1=Q {[%clk 0:00:08.1]} 0-1

[Event "*** Titled Tuesday Blitz"]
[Site "Chess.com"]
[Date "2021.03.30"]
[Round "3"]
[White "ErikRonka"]
[Black "Gudmundur_Kjartansson"]
[Result "1-0"]
[WhiteElo "2398"]
[BlackElo "2541"]
[TimeControl "180+1"]
[EndTime "10:28:17 PDT"]
[Termination "ErikRonka won on time"]

1. e4 {[%clk 0:03:00.9]} 1... c5 {[%clk 0:02:58.8]} 2. Nf3 {[%clk 0:03:01.1]}
2... e6 {[%clk 0:02:58.8]} 3. d4 {[%clk 0:03:00.5]} 3... cxd4 {[%clk 0:02:59.1]}
4. Nxd4 {[%clk 0:03:01.4]} 4... Nc6 {[%clk 0:02:59.4]} 5. Nc3 {[%clk 0:03:01.9]}
5... Qc7 {[%clk 0:02:58.5]} 6. Be3 {[%clk 0:03:02.1]} 6... a6 {[%clk 0:02:57]}
7. Bd3 {[%clk 0:03:02.5]} 7... Nf6 {[%clk 0:02:54.4]} 8. O-O {[%clk 0:03:01.6]}
8... Nxd4 {[%clk 0:02:44.4]} 9. Bxd4 {[%clk 0:03:02.5]} 9... Bc5 {[%clk
0:02:44.5]} 10. Be2 {[%clk 0:02:57.6]} 10... b5 {[%clk 0:02:35.6]} 11. e5 {[%clk
0:02:47.1]} 11... Ng8 {[%clk 0:02:30.4]} 12. Bf3 {[%clk 0:02:15.9]} 12... Rb8
{[%clk 0:02:28.9]} 13. Ne4 {[%clk 0:01:58]} 13... Be7 {[%clk 0:01:51.8]} 14.
Nd6+ {[%clk 0:01:56.1]} 14... Kf8 {[%clk 0:01:51.8]} 15. a4 {[%clk 0:01:47.3]}
15... b4 {[%clk 0:01:45.1]} 16. a5 {[%clk 0:01:33.5]} 16... Bxd6 {[%clk
0:01:01.5]} 17. exd6 {[%clk 0:01:33.1]} 17... Qd8 {[%clk 0:00:59.9]} 18. Bb6
{[%clk 0:01:28.2]} 18... Qg5 {[%clk 0:00:35.8]} 19. Qd4 {[%clk 0:01:17]} 19...
Nf6 {[%clk 0:00:34.4]} 20. Qc4 {[%clk 0:00:55.6]} 20... Ne8 {[%clk 0:00:26.9]}
21. Qxb4 {[%clk 0:00:50.8]} 21... h5 {[%clk 0:00:21.3]} 22. c4 {[%clk
0:00:47.5]} 22... h4 {[%clk 0:00:18.8]} 23. h3 {[%clk 0:00:45.5]} 23... Rh6
{[%clk 0:00:14.8]} 24. c5 {[%clk 0:00:44.7]} 24... Kg8 {[%clk 0:00:13.9]} 25. c6
{[%clk 0:00:31.3]} 25... dxc6 {[%clk 0:00:13.7]} 26. Rfd1 {[%clk 0:00:29.7]}
26... Bd7 {[%clk 0:00:12]} 27. Rac1 {[%clk 0:00:29]} 27... Rg6 {[%clk
0:00:06.6]} 28. Qc4 {[%clk 0:00:25.9]} 28... Kh8 {[%clk 0:00:04.3]} 29. Be3
{[%clk 0:00:19.7]} 29... Qd8 {[%clk 0:00:03.3]} 30. Bxc6 {[%clk 0:00:19.2]}
30... Bxc6 {[%clk 0:00:03.3]} 31. Qxc6 {[%clk 0:00:20.1]} 31... Qxa5 {[%clk
0:00:03.3]} 32. d7 {[%clk 0:00:18.7]} 32... Nf6 {[%clk 0:00:03.6]} 33. Qc8+
{[%clk 0:00:18.3]} 33... Qd8 {[%clk 0:00:03.5]} 34. Qxb8 {[%clk 0:00:18]} 34...
Qxb8 {[%clk 0:00:03.4]} 35. Rc8+ {[%clk 0:00:18.4]} 1-0

[Event "*** Titled Tuesday Blitz"]
[Site "Chess.com"]
[Date "2021.03.30"]
[Round "3"]
[White "Fighter008"]
[Black "Grandmaster1369"]
[Result "1/2-1/2"]
[WhiteElo "2599"]
[BlackElo "2421"]
[TimeControl "180+1"]
[EndTime "10:28:18 PDT"]
[Termination "Game drawn by stalemate"]

1. e4 {[%clk 0:03:00.9]} 1... c5 {[%clk 0:02:59.8]} 2. Nf3 {[%clk 0:03:00.7]}
2... e6 {[%clk 0:03:00.3]} 3. d4 {[%clk 0:03:00.4]} 3... cxd4 {[%clk 0:03:01.2]}
4. Nxd4 {[%clk 0:03:01.3]} 4... a6 {[%clk 0:03:01.9]} 5. Nc3 {[%clk 0:03:00.7]}
5... b5 {[%clk 0:03:02.3]} 6. Be2 {[%clk 0:03:00]} 6... Bb7 {[%clk 0:03:02.1]}
7. O-O {[%clk 0:03:00]} 7... b4 {[%clk 0:03:01]} 8. Na4 {[%clk 0:02:58.9]} 8...
Bxe4 {[%clk 0:03:01.5]} 9. Bf3 {[%clk 0:02:56.6]} 9... Nf6 {[%clk 0:03:01.3]}
10. Bxe4 {[%clk 0:02:55.3]} 10... Nxe4 {[%clk 0:03:02.2]} 11. Re1 {[%clk
0:02:55.1]} 11... d5 {[%clk 0:03:02.7]} 12. Nxe6 {[%clk 0:02:51]} 12... fxe6
{[%clk 0:03:01.9]} 13. Qh5+ {[%clk 0:02:49.8]} 13... g6 {[%clk 0:02:59.7]} 14.
Qe5 {[%clk 0:02:49.5]} 14... Qf6 {[%clk 0:03:00.1]} 15. Rxe4 {[%clk 0:02:48.8]}
15... Qxe5 {[%clk 0:03:00.6]} 16. Rxe5 {[%clk 0:02:49.3]} 16... Kf7 {[%clk
0:03:01]} 17. Bg5 {[%clk 0:02:47.9]} 17... Nd7 {[%clk 0:02:58.8]} 18. Re3 {[%clk
0:02:45.9]} 18... Bg7 {[%clk 0:02:46.3]} 19. Rae1 {[%clk 0:02:42.8]} 19... Rhe8
{[%clk 0:02:44.8]} 20. Rf3+ {[%clk 0:02:32.1]} 20... Kg8 {[%clk 0:02:44.3]} 21.
Bd2 {[%clk 0:02:32.8]} 21... a5 {[%clk 0:02:39]} 22. Rfe3 {[%clk 0:02:31.3]}
22... e5 {[%clk 0:02:33.2]} 23. Rd3 {[%clk 0:02:30.7]} 23... d4 {[%clk 0:02:25]}
24. f3 {[%clk 0:02:29.9]} 24... Rac8 {[%clk 0:02:23.9]} 25. c3 {[%clk 0:02:30]}
25... bxc3 {[%clk 0:02:21.2]} 26. bxc3 {[%clk 0:02:29.8]} 26... Rc4 {[%clk
0:01:56]} 27. Nb2 {[%clk 0:02:28.3]} 27... Rcc8 {[%clk 0:01:50.3]} 28. cxd4
{[%clk 0:02:25]} 28... exd4 {[%clk 0:01:35.1]} 29. Rxe8+ {[%clk 0:02:24]} 29...
Rxe8 {[%clk 0:01:36]} 30. Bxa5 {[%clk 0:02:15.7]} 30... Nc5 {[%clk 0:01:26.8]}
31. Rd1 {[%clk 0:02:15.4]} 31... Re2 {[%clk 0:01:25.5]} 32. Nd3 {[%clk 0:02:04]}
32... Rxa2 {[%clk 0:01:16.8]} 33. Nxc5 {[%clk 0:02:00.8]} 33... Rxa5 {[%clk
0:01:16.9]} 34. Nd3 {[%clk 0:01:55.5]} 34... Ra2 {[%clk 0:01:16.8]} 35. Nb4
{[%clk 0:01:44.6]} 35... Rb2 {[%clk 0:01:12.5]} 36. Nc6 {[%clk 0:01:44.5]} 36...
Rb6 {[%clk 0:01:03.9]} 37. Ne7+ {[%clk 0:01:43.4]} 37... Kf7 {[%clk 0:01:03.1]}
38. Nd5 {[%clk 0:01:44.3]} 38... Rb5 {[%clk 0:00:58.8]} 39. Nf4 {[%clk
0:01:43.7]} 39... Rb3 {[%clk 0:00:46.1]} 40. Nd3 {[%clk 0:01:43.2]} 40... Rc3
{[%clk 0:00:45.3]} 41. Kf2 {[%clk 0:01:41.3]} 41... Rc2+ {[%clk 0:00:44.7]} 42.
Kg3 {[%clk 0:01:41.7]} 42... Ke6 {[%clk 0:00:44.5]} 43. f4 {[%clk 0:01:42]}
43... Rc3 {[%clk 0:00:43.1]} 44. Kf3 {[%clk 0:01:41.2]} 44... Kd5 {[%clk
0:00:43.7]} 45. Ke2 {[%clk 0:01:40.6]} 45... Kc4 {[%clk 0:00:42.3]} 46. Rc1
{[%clk 0:01:40.2]} 46... Bf6 {[%clk 0:00:38]} 47. g4 {[%clk 0:01:38.6]} 47...
Kd5 {[%clk 0:00:35.8]} 48. f5 {[%clk 0:01:21.3]} 48... gxf5 {[%clk 0:00:33.1]}
49. gxf5 {[%clk 0:01:21.6]} 49... Ke4 {[%clk 0:00:33.8]} 50. Nc5+ {[%clk
0:01:17.8]} 50... Kxf5 {[%clk 0:00:32.4]} 51. Rf1+ {[%clk 0:01:17.8]} 51... Kg6
{[%clk 0:00:33]} 52. Rxf6+ {[%clk 0:01:04.1]} 52... Kxf6 {[%clk 0:00:33.9]} 53.
Ne4+ {[%clk 0:01:04.8]} 53... Ke5 {[%clk 0:00:34.7]} 54. Nxc3 {[%clk 0:01:05.4]}
54... dxc3 {[%clk 0:00:35.6]} 55. Kd3 {[%clk 0:01:06]} 55... Kf4 {[%clk
0:00:35.6]} 56. Kxc3 {[%clk 0:01:06.1]} 56... Ke3 {[%clk 0:00:36.2]} 57. h4
{[%clk 0:01:00.9]} 57... h5 {[%clk 0:00:36.2]} 58. Kc2 {[%clk 0:01:00.6]} 58...
Ke2 {[%clk 0:00:36.8]} 59. Kc3 {[%clk 0:01:00.6]} 59... Kf3 {[%clk 0:00:37.6]}
60. Kd2 {[%clk 0:01:00.7]} 60... Kg3 {[%clk 0:00:38.5]} 61. Ke1 {[%clk 0:01:01]}
61... Kxh4 {[%clk 0:00:39.4]} 62. Kf1 {[%clk 0:01:01.4]} 62... Kg3 {[%clk
0:00:40.3]} 63. Kg1 {[%clk 0:01:01.8]} 63... h4 {[%clk 0:00:41.2]} 64. Kh1
{[%clk 0:01:02.4]} 64... h3 {[%clk 0:00:42.1]} 65. Kg1 {[%clk 0:01:02.9]} 65...
h2+ {[%clk 0:00:43]} 66. Kh1 {[%clk 0:01:03.5]} 66... Kh3 {[%clk 0:00:43.9]}
1/2-1/2

[Event "*** Titled Tuesday Blitz"]
[Site "Chess.com"]
[Date "2021.03.30"]
[Round "3"]
[White "Balla_Tamas"]
[Black "skeyman"]
[Result "1-0"]
[WhiteElo "2507"]
[BlackElo "2242"]
[TimeControl "180+1"]
[EndTime "10:28:18 PDT"]
[Termination "Balla_Tamas won by checkmate"]

1. e4 {[%clk 0:02:59.4]} 1... c5 {[%clk 0:02:59.6]} 2. Nf3 {[%clk 0:02:52.7]}
2... e6 {[%clk 0:02:59.8]} 3. d4 {[%clk 0:02:41.4]} 3... cxd4 {[%clk 0:03:00.7]}
4. Nxd4 {[%clk 0:02:42.3]} 4... a6 {[%clk 0:02:57.9]} 5. c4 {[%clk 0:02:40]}
5... Qc7 {[%clk 0:02:57.8]} 6. Nc3 {[%clk 0:02:36.8]} 6... Nf6 {[%clk
0:02:57.9]} 7. a3 {[%clk 0:02:36.1]} 7... Nc6 {[%clk 0:02:56.9]} 8. Be3 {[%clk
0:02:33.7]} 8... h5 {[%clk 0:02:56.3]} 9. f3 {[%clk 0:02:31.3]} 9... Ne5 {[%clk
0:02:51.4]} 10. Rc1 {[%clk 0:02:28.9]} 10... Ng6 {[%clk 0:02:49.7]} 11. Qd2
{[%clk 0:02:27]} 11... d6 {[%clk 0:02:49.1]} 12. Be2 {[%clk 0:02:24.7]} 12...
Bd7 {[%clk 0:02:49.2]} 13. b4 {[%clk 0:02:24.3]} 13... Rc8 {[%clk 0:02:48.7]}
14. O-O {[%clk 0:02:22.7]} 14... Be7 {[%clk 0:02:48.2]} 15. Kh1 {[%clk
0:01:59.5]} 15... h4 {[%clk 0:02:46]} 16. f4 {[%clk 0:01:55.1]} 16... Qb8 {[%clk
0:02:41.7]} 17. Bd3 {[%clk 0:01:36.3]} 17... h3 {[%clk 0:02:33.9]} 18. g3 {[%clk
0:01:34.1]} 18... Qa8 {[%clk 0:02:15.9]} 19. Kg1 {[%clk 0:01:04.4]} 19... O-O
{[%clk 0:02:11]} 20. Qe2 {[%clk 0:00:59.5]} 20... Rfd8 {[%clk 0:01:55.4]} 21. g4
{[%clk 0:00:56.5]} 21... e5 {[%clk 0:01:52.1]} 22. Nf5 {[%clk 0:00:54.6]} 22...
Bxf5 {[%clk 0:01:41.5]} 23. gxf5 {[%clk 0:00:54.8]} 23... Nxf4 {[%clk
0:01:41.4]} 24. Bxf4 {[%clk 0:00:55.1]} 24... exf4 {[%clk 0:01:41.7]} 25. Rxf4
{[%clk 0:00:55.7]} 25... b5 {[%clk 0:01:38.4]} 26. Rc2 {[%clk 0:00:29.8]} 26...
bxc4 {[%clk 0:01:28.4]} 27. Bxc4 {[%clk 0:00:29.5]} 27... Nd7 {[%clk 0:01:16.7]}
28. Nd5 {[%clk 0:00:27.4]} 28... Bg5 {[%clk 0:01:15.8]} 29. Rg4 {[%clk
0:00:25.3]} 29... Bf6 {[%clk 0:01:13.5]} 30. Qf3 {[%clk 0:00:21.9]} 30... Kf8
{[%clk 0:01:07.5]} 31. Qxh3 {[%clk 0:00:20.8]} 31... Kg8 {[%clk 0:00:40.7]} 32.
Qh5 {[%clk 0:00:20.7]} 32... Rxc4 {[%clk 0:00:36.5]} 33. Rxc4 {[%clk 0:00:20.2]}
33... Qa7+ {[%clk 0:00:35.7]} 34. Kf1 {[%clk 0:00:19.7]} 34... Be5 {[%clk
0:00:34.5]} 35. f6 {[%clk 0:00:18.5]} 35... g6 {[%clk 0:00:34]} 36. Qh6 {[%clk
0:00:17.5]} 36... Nxf6 {[%clk 0:00:34]} 37. Nxf6+ {[%clk 0:00:17.2]} 37... Bxf6
{[%clk 0:00:34.1]} 38. h4 {[%clk 0:00:16.9]} 38... a5 {[%clk 0:00:31.9]} 39. h5
{[%clk 0:00:16.1]} 39... axb4 {[%clk 0:00:29.9]} 40. hxg6 {[%clk 0:00:15.7]}
40... Qa6 {[%clk 0:00:26]} 41. Qh7+ {[%clk 0:00:15.3]} 41... Kf8 {[%clk
0:00:26]} 42. Qxf7# {[%clk 0:00:16.2]} 1-0

[Event "*** Titled Tuesday Blitz"]
[Site "Chess.com"]
[Date "2021.03.30"]
[Round "3"]
[White "mishanick"]
[Black "jacky72"]
[Result "0-1"]
[WhiteElo "2965"]
[BlackElo "2711"]
[TimeControl "180+1"]
[EndTime "10:28:20 PDT"]
[Termination "jacky72 won by resignation"]

1. e4 {[%clk 0:03:00.9]} 1... e5 {[%clk 0:02:59.8]} 2. Nf3 {[%clk 0:03:00.8]}
2... Nc6 {[%clk 0:03:00.4]} 3. Bb5 {[%clk 0:03:00.7]} 3... a6 {[%clk 0:03:00]}
4. Ba4 {[%clk 0:03:00.9]} 4... d6 {[%clk 0:03:00.9]} 5. O-O {[%clk 0:03:00.1]}
5... Bd7 {[%clk 0:03:01.3]} 6. d4 {[%clk 0:02:58]} 6... b5 {[%clk 0:03:00.8]} 7.
Bb3 {[%clk 0:02:56.6]} 7... Nxd4 {[%clk 0:03:01.4]} 8. Nxd4 {[%clk 0:02:54]}
8... exd4 {[%clk 0:03:02.3]} 9. c3 {[%clk 0:02:52.6]} 9... d3 {[%clk 0:03:02.8]}
10. Qxd3 {[%clk 0:02:48.3]} 10... Nf6 {[%clk 0:02:59.5]} 11. f4 {[%clk
0:02:42.2]} 11... c5 {[%clk 0:02:51]} 12. Bc2 {[%clk 0:02:18.1]} 12... c4 {[%clk
0:02:47.7]} 13. Qf3 {[%clk 0:02:15.9]} 13... Bc6 {[%clk 0:02:36.6]} 14. Nd2
{[%clk 0:02:09.4]} 14... Be7 {[%clk 0:02:36.1]} 15. Qh3 {[%clk 0:01:54.5]} 15...
Qb6+ {[%clk 0:02:34.6]} 16. Kh1 {[%clk 0:01:53.4]} 16... h5 {[%clk 0:02:31.4]}
17. a4 {[%clk 0:01:45.8]} 17... Ng4 {[%clk 0:02:26.5]} 18. Qf3 {[%clk
0:01:12.1]} 18... Ne3 {[%clk 0:02:13.5]} 19. Nxc4 {[%clk 0:00:55.5]} 19... Nxc4
{[%clk 0:02:06.8]} 20. b3 {[%clk 0:00:55.8]} 20... Na5 {[%clk 0:02:00.8]} 21.
axb5 {[%clk 0:00:54.8]} 21... axb5 {[%clk 0:01:53.3]} 22. Be3 {[%clk 0:00:54.7]}
22... Qc7 {[%clk 0:01:46.5]} 23. Bd4 {[%clk 0:00:51.8]} 23... f6 {[%clk
0:01:40.9]} 24. Qg3 {[%clk 0:00:44.3]} 24... Kf8 {[%clk 0:01:30.5]} 25. e5
{[%clk 0:00:36.7]} 25... h4 {[%clk 0:01:28.2]} 26. Qh3 {[%clk 0:00:36.9]} 26...
Qb7 {[%clk 0:01:17.1]} 27. Rae1 {[%clk 0:00:28.5]} 27... Bd7 {[%clk 0:01:15.5]}
28. Bf5 {[%clk 0:00:25.4]} 28... Bxf5 {[%clk 0:01:15.6]} 29. Qxf5 {[%clk
0:00:26.3]} 29... h3 {[%clk 0:01:16.5]} 30. Re2 {[%clk 0:00:25.1]} 30... Qd5
{[%clk 0:00:59.6]} 31. Qg4 {[%clk 0:00:18.4]} 31... Nxb3 {[%clk 0:00:54.4]} 32.
exf6 {[%clk 0:00:18]} 32... Bxf6 {[%clk 0:00:53.5]} 33. Bxf6 {[%clk 0:00:17.5]}
33... gxf6 {[%clk 0:00:54.4]} 34. Qg6 {[%clk 0:00:13.6]} 34... Qf7 {[%clk
0:00:48.3]} 35. Qf5 {[%clk 0:00:13.7]} 35... Rh5 {[%clk 0:00:39.8]} 36. Qg4
{[%clk 0:00:12.9]} 36... Qd5 {[%clk 0:00:36.4]} 37. f5 {[%clk 0:00:10]} 37...
hxg2+ {[%clk 0:00:35.2]} 38. Rxg2 {[%clk 0:00:08]} 38... Rg5 {[%clk 0:00:35]}
39. Qh3 {[%clk 0:00:08]} 39... Qxg2+ {[%clk 0:00:32.6]} 40. Qxg2 {[%clk
0:00:08.5]} 40... Rxg2 {[%clk 0:00:33.5]} 41. Kxg2 {[%clk 0:00:09.4]} 41... Ra2+
{[%clk 0:00:33.4]} 42. Kg3 {[%clk 0:00:09.7]} 42... Rc2 {[%clk 0:00:33.9]} 43.
Rf3 {[%clk 0:00:09.7]} 43... Nd2 {[%clk 0:00:34.3]} 44. Rd3 {[%clk 0:00:10.2]}
44... Rxc3 {[%clk 0:00:33.5]} 0-1

[Event "*** Titled Tuesday Blitz"]
[Site "Chess.com"]
[Date "2021.03.30"]
[Round "3"]
[White "lucachess49"]
[Black "HanSchut"]
[Result "1-0"]
[WhiteElo "2434"]
[BlackElo "2236"]
[TimeControl "180+1"]
[EndTime "10:28:20 PDT"]
[Termination "lucachess49 won on time"]

1. d4 {[%clk 0:03:00.9]} 1... Nf6 {[%clk 0:02:59.6]} 2. c4 {[%clk 0:02:58.2]}
2... g6 {[%clk 0:02:59.9]} 3. f3 {[%clk 0:02:56.8]} 3... Nc6 {[%clk 0:02:59.3]}
4. d5 {[%clk 0:02:45.7]} 4... Ne5 {[%clk 0:02:53]} 5. e4 {[%clk 0:02:44.8]} 5...
d6 {[%clk 0:02:50]} 6. Nc3 {[%clk 0:02:38.1]} 6... Bg7 {[%clk 0:02:50]} 7. f4
{[%clk 0:02:32.2]} 7... Ned7 {[%clk 0:02:50]} 8. Nh3 {[%clk 0:02:32]} 8... O-O
{[%clk 0:02:49.1]} 9. Be2 {[%clk 0:02:30.7]} 9... Nc5 {[%clk 0:02:46.8]} 10. Nf2
{[%clk 0:02:30.2]} 10... e6 {[%clk 0:02:46.9]} 11. O-O {[%clk 0:02:16.6]} 11...
exd5 {[%clk 0:02:29.3]} 12. cxd5 {[%clk 0:02:14.5]} 12... Re8 {[%clk 0:02:29.2]}
13. Bf3 {[%clk 0:02:09.1]} 13... h5 {[%clk 0:01:33.8]} 14. Re1 {[%clk
0:02:00.4]} 14... b6 {[%clk 0:01:26.5]} 15. Qc2 {[%clk 0:01:16.8]} 15... Ba6
{[%clk 0:01:13.8]} 16. b4 {[%clk 0:01:14.9]} 16... Nfxe4 {[%clk 0:00:56.8]} 17.
Bxe4 {[%clk 0:01:08.2]} 17... Bd3 {[%clk 0:00:45.6]} 18. Nxd3 {[%clk 0:00:30.6]}
18... Nxe4 {[%clk 0:00:45.6]} 19. Rxe4 {[%clk 0:00:14.5]} 19... Rxe4 {[%clk
0:00:43.6]} 20. Nxe4 {[%clk 0:00:15.4]} 20... Bxa1 {[%clk 0:00:41.9]} 21. Bb2
{[%clk 0:00:15.8]} 21... Bxb2 {[%clk 0:00:37.5]} 22. Qxb2 {[%clk 0:00:16.7]}
22... Qh4 {[%clk 0:00:25.6]} 23. Nf6+ {[%clk 0:00:15.6]} 23... Kf8 {[%clk
0:00:25.7]} 24. Nh7+ {[%clk 0:00:13.7]} 24... Ke7 {[%clk 0:00:21]} 25. g3 {[%clk
0:00:09.4]} 25... Qh3 {[%clk 0:00:05.1]} 26. Qf6+ {[%clk 0:00:07.5]} 26... Kd7
{[%clk 0:00:03.9]} 27. Qxf7+ {[%clk 0:00:05.1]} 27... Kc8 {[%clk 0:00:04.5]} 28.
Nf6 {[%clk 0:00:05.2]} 28... Kb7 {[%clk 0:00:04.2]} 29. Nf2 {[%clk 0:00:02.9]}
29... Qc8 {[%clk 0:00:02.3]} 30. Qe6 {[%clk 0:00:03.1]} 30... Qh8 {[%clk
0:00:01.1]} 31. N2e4 {[%clk 0:00:02.2]} 1-0

[Event "*** Titled Tuesday Blitz"]
[Site "Chess.com"]
[Date "2021.03.30"]
[Round "3"]
[White "AEMEffi"]
[Black "Skat2704"]
[Result "0-1"]
[WhiteElo "2263"]
[BlackElo "2631"]
[TimeControl "180+1"]
[EndTime "10:28:20 PDT"]
[Termination "Skat2704 won by resignation"]

1. d4 {[%clk 0:03:00.9]} 1... d5 {[%clk 0:02:59]} 2. c4 {[%clk 0:03:01.3]} 2...
c6 {[%clk 0:02:54.3]} 3. Nc3 {[%clk 0:03:01.6]} 3... Nf6 {[%clk 0:02:52.3]} 4.
e3 {[%clk 0:03:00]} 4... e6 {[%clk 0:02:47.8]} 5. Nf3 {[%clk 0:02:59.8]} 5...
Be7 {[%clk 0:02:44.1]} 6. Qc2 {[%clk 0:03:00.4]} 6... O-O {[%clk 0:02:41.2]} 7.
Be2 {[%clk 0:02:58.1]} 7... b6 {[%clk 0:02:38.6]} 8. O-O {[%clk 0:02:57.8]} 8...
Bb7 {[%clk 0:02:38]} 9. b3 {[%clk 0:02:57.1]} 9... Nbd7 {[%clk 0:02:21]} 10. Rd1
{[%clk 0:02:53]} 10... Rc8 {[%clk 0:02:11.9]} 11. Bb2 {[%clk 0:02:29]} 11... c5
{[%clk 0:02:09.1]} 12. Rac1 {[%clk 0:02:14.3]} 12... a6 {[%clk 0:02:04.8]} 13.
cxd5 {[%clk 0:02:03.4]} 13... exd5 {[%clk 0:02:03]} 14. dxc5 {[%clk 0:01:56.7]}
14... Nxc5 {[%clk 0:02:00.1]} 15. Qf5 {[%clk 0:01:56.3]} 15... Nce4 {[%clk
0:01:54.9]} 16. Nxe4 {[%clk 0:01:40.5]} 16... Nxe4 {[%clk 0:01:52.1]} 17. Qg4
{[%clk 0:01:15.1]} 17... Bf6 {[%clk 0:01:49]} 18. Nd4 {[%clk 0:01:05.5]} 18...
Qe7 {[%clk 0:01:43.5]} 19. Bd3 {[%clk 0:00:58.6]} 19... Rfe8 {[%clk 0:01:38.7]}
20. h3 {[%clk 0:00:46.6]} 20... g6 {[%clk 0:01:31.2]} 21. Nf5 {[%clk 0:00:43.5]}
21... Qe6 {[%clk 0:01:27.7]} 22. Bxe4 {[%clk 0:00:39.3]} 22... dxe4 {[%clk
0:01:24.5]} 23. Nh6+ {[%clk 0:00:35.2]} 23... Kg7 {[%clk 0:01:22]} 24. Rxc8
{[%clk 0:00:29.5]} 24... Bxc8 {[%clk 0:01:19.1]} 25. Qxe6 {[%clk 0:00:14.9]}
25... Bxe6 {[%clk 0:01:16.1]} 26. Bxf6+ {[%clk 0:00:15.8]} 26... Kxf6 {[%clk
0:01:13.9]} 27. Ng4+ {[%clk 0:00:16.7]} 27... Ke7 {[%clk 0:01:10.4]} 28. Ne5
{[%clk 0:00:16.1]} 28... Rc8 {[%clk 0:01:08.4]} 29. Rd2 {[%clk 0:00:16]} 29...
f6 {[%clk 0:01:06.3]} 30. Ng4 {[%clk 0:00:12.4]} 30... h5 {[%clk 0:01:04.1]} 31.
Nh2 {[%clk 0:00:11.8]} 31... Rc1+ {[%clk 0:01:02.5]} 32. Nf1 {[%clk 0:00:12.4]}
32... Bd7 {[%clk 0:01:00.4]} 33. a4 {[%clk 0:00:09.3]} 33... b5 {[%clk
0:00:55.9]} 34. Rd4 {[%clk 0:00:08.9]} 34... f5 {[%clk 0:00:52.6]} 35. a5 {[%clk
0:00:06.1]} 35... b4 {[%clk 0:00:50]} 36. Rc4 {[%clk 0:00:04.2]} 36... Rb1
{[%clk 0:00:44.8]} 37. Rxb4 {[%clk 0:00:03.7]} 37... Bb5 {[%clk 0:00:43.3]} 38.
Rxb5 {[%clk 0:00:04.1]} 38... axb5 {[%clk 0:00:42.6]} 39. g3 {[%clk 0:00:03.6]}
39... Rxb3 {[%clk 0:00:40.8]} 40. Kg2 {[%clk 0:00:03.8]} 40... Ra3 {[%clk
0:00:39.6]} 41. g4 {[%clk 0:00:04]} 41... Rxa5 {[%clk 0:00:39.2]} 42. gxh5
{[%clk 0:00:03.8]} 42... gxh5 {[%clk 0:00:39.3]} 43. Ng3 {[%clk 0:00:04.7]}
43... b4 {[%clk 0:00:38.4]} 0-1